bitfinex/quotes_SOLUSD_20240811
["timestamp","ask_amount","ask_price","bid_price","bid_amount"]
[1723393921897,4.6914,149.21,149.16,45.0]
[1723393922099,20.0,149.25,149.17,1.34060027]
[1723393922306,6.4133,149.28,149.18,1.34045936]
[1723393922514,4.69,149.26,149.19,0.12549]
[1723393922705,272.3223,149.29,149.19,0.12549]
[1723393922706,272.3223,149.29,149.19,1.46575495]
[1723393922911,272.3223,149.29,149.19,7.87905495]
[1723393923224,4.6898,149.26,149.19,7.87905495]
[1723393923398,4.6892,149.28,149.21,15.8809]
[1723393923601,4.6892,149.28,149.22,46.46549021]
[1723393923824,4.6895,149.27,149.22,46.46549021]
[1723393924021,11.7202,149.32,149.21,15.8809]
[1723393924022,4.6898,149.26,149.21,15.8809]
[1723393924407,4.6895,149.27,149.22,45.0]
[1723393924608,4.6898,149.26,149.22,45.0]
[1723393924927,4.6907,149.23,149.19,6.4133]
[1723393925101,15.69275574,149.32,149.2,1.34038492]
[1723393925303,4.6895,149.27,149.19,6.4133]
[1723393925500,4.6898,149.26,149.19,6.4133]
[1723393925701,20.0,149.3,149.19,6.4133]
[1723393926427,4.6897,149.27,149.2,45.50196]
[1723393926808,4.6899,149.26,149.2,45.50196]
[1723393927413,4.6895,149.27,149.2,45.50196]
[1723393927617,4.6891,149.29,149.22,0.12549]
[1723393927818,29.984855,149.34,149.22,45.25098]
[1723393928030,4.6895,149.27,149.22,45.12549]
[1723393928511,4.6892,149.28,149.22,45.12549]
[1723393928826,11.7204,149.32,149.22,45.12549]
[1723393929032,4.6889,149.29,149.23,0.12549]
[1723393929235,4.6889,149.29,149.23,0.25098]
[1723393929446,4.6891,149.28,149.23,0.12549]
[1723393930128,4.6897,149.27,149.22,45.0]
[1723393930327,4.6897,149.27,149.21,15.5321]
[1723393930541,11.84739,149.3,149.21,15.5321]
[1723393930711,4.6903,149.25,149.21,15.5321]
[1723393930913,20.0,149.29,149.21,15.5321]
[1723393930914,4.6898,149.26,149.21,15.5321]
[1723393931117,4.6897,149.27,149.21,15.5321]
[1723393931415,4.6892,149.28,149.21,15.5321]
[1723393931647,4.6889,149.29,149.21,15.5321]
[1723393932239,4.6888,149.29,149.22,45.37647]
[1723393932623,4.6891,149.28,149.22,45.37647]
[1723393932825,4.6891,149.28,149.22,45.25098]
[1723393933147,20.0,149.32,149.22,45.25098]
[1723393933667,4.6887,149.3,149.22,45.25098]
[1723393934227,4.6888,149.29,149.22,45.25098]
[1723393934738,29.984855,149.34,149.22,45.25098]
[1723393934739,15.4655,149.34,149.22,45.25098]
[1723393934945,4.6881,149.32,149.25,0.12549]
[1723393935143,260.6,149.35,149.25,45.12549]
[1723393935442,4.689,149.29,149.24,6.3595]
[1723393935739,4.6886,149.3,149.24,6.3595]
[1723393936040,4.6882,149.31,149.24,6.3595]
[1723393936222,4.6882,149.31,149.25,0.25098]
[1723393936426,4.6882,149.31,149.25,45.25098]
[1723393938231,260.6,149.35,149.26,1.33972374]
[1723393938433,20.0,149.34,149.25,45.25098]
[1723393938649,4.6879,149.32,149.25,45.25098]
[1723393939219,4.6877,149.33,149.26,15.5321]
[1723393940250,10.49492963,149.39,149.28,0.12549]
[1723393940420,4.6868,149.36,149.28,1.46487719]
[1723393940620,4.6873,149.34,149.28,0.12549]
[1723393941328,4.687,149.35,149.28,0.12549]
[1723393941712,4.6883,149.31,149.26,15.5321]
[1723393941917,0.12549,149.37,149.26,15.5321]
[1723393941918,16.58599,149.36,149.26,15.5321]
[1723393942147,4.6877,149.33,149.26,15.5321]
[1723393942317,4.6873,149.34,149.26,15.5321]
[1723393942749,4.6869,149.36,149.26,15.5321]
[1723393942942,25.86497577,149.41,149.26,15.5321]
[1723393943149,25.86497577,149.41,149.27,45.50196]
[1723393943447,4.6866,149.36,149.27,45.50196]
[1723393943674,4.687,149.35,149.27,45.50196]
[1723393943942,4.6873,149.34,149.27,45.12549]
[1723393944149,11.7137,149.4,149.27,45.12549]
[1723393944347,4.6868,149.36,149.28,0.12549]
[1723393944849,65.0,149.39,149.28,0.12549]
[1723393944850,4.6871,149.35,149.28,0.12549]
[1723393945057,4.6875,149.34,149.27,45.12549]
[1723393945263,20.12549,149.37,149.27,45.12549]
[1723393945463,4.6876,149.33,149.27,45.12549]
[1723393945830,4.6873,149.34,149.27,45.12549]
[1723393946050,4.6868,149.36,149.28,0.12549]
[1723393946443,4.687,149.35,149.28,0.37647]
[1723393946643,4.687,149.35,149.29,0.12549]
[1723393946845,4.6867,149.36,149.29,0.12549]
[1723393947258,4.6864,149.37,149.29,0.12549]
[1723393947837,4.6867,149.36,149.29,0.12549]
[1723393948041,4.6864,149.37,149.3,0.12549]
[1723393948361,20.0,149.4,149.31,15.1305]
[1723393948362,4.6866,149.36,149.31,15.1305]
[1723393950143,25.8066,149.36,149.31,15.1305]
[1723393950459,4.6854,149.4,149.31,15.1305]
[1723393950663,21.12,149.39,149.32,45.12549]
[1723393951051,4.6866,149.36,149.31,15.1305]
[1723393951251,23.4224,149.43,149.31,15.1305]
[1723393951252,21.12,149.35,149.31,15.1305]
[1723393951459,25.8071,149.35,149.31,15.1305]
[1723393951649,21.12,149.35,149.31,15.1305]
[1723393954079,21.12,149.33,149.27,15.1305]
[1723393954380,25.807,149.35,149.27,15.1305]
[1723393954580,6.1695,149.38,149.27,15.1305]
[1723393954790,41.12,149.37,149.27,15.1305]
[1723393954963,21.12,149.37,149.27,15.1305]
[1723393955169,21.12,149.37,149.28,0.50196]
[1723393955476,25.8063,149.37,149.28,45.50196]
[1723393957064,21.12,149.37,149.28,66.62196]
[1723393957266,4.686,149.38,149.3,0.12549]
[1723393957579,21.12,149.39,149.3,66.62196]
[1723393957580,25.8058,149.39,149.3,66.62196]
[1723393959791,25.8058,149.39,149.3,67.96109753]
[1723393961474,21.12,149.39,149.3,45.50196]
[1723393961789,21.12,149.37,149.3,45.12549]
[1723393961957,4.6869,149.36,149.3,0.12549]
[1723393962874,21.12,149.37,149.29,21.2298]
[1723393963759,4.6874,149.34,149.29,21.2298]
[1723393963985,20.0,149.39,149.29,15.1305]
[1723393963986,25.8077,149.33,149.29,15.1305]
[1723393964359,25.8077,149.33,149.25,6.0993]
[1723393964561,21.12,149.33,149.25,21.2298]
[1723393965176,21.12,149.35,149.25,21.2298]
[1723393965483,21.12,149.35,149.26,22.45957464]
[1723393965691,21.12,149.35,149.26,21.12]
[1723393965895,21.12,149.35,149.27,0.25098]
[1723393966064,21.12,149.35,149.28,0.12549]
[1723393966269,21.12,149.35,149.28,1.46494806]
[1723393967969,25.8064,149.37,149.28,21.37098]
[1723393968290,25.8057,149.39,149.31,6.0007]
[1723393968508,9.2551223,149.44,149.32,67.45913649]
[1723393968667,21.12,149.42,149.33,0.12549]
[1723393968870,4.6854,149.4,149.33,1.46449928]
[1723393969089,25.8054,149.4,149.33,0.12549]
[1723393969288,25.806,149.38,149.32,45.0]
[1723393969894,25.8054,149.4,149.32,45.0]
[1723393970073,25.8054,149.4,149.33,0.12549]
[1723393970578,21.12,149.4,149.33,0.12549]
[1723393970783,21.12,149.4,149.33,0.25098]
[1723393971796,21.12,149.43,149.34,22.02759]
[1723393971970,4.6853,149.41,149.35,46.46438177]
[1723393972166,21.12,149.43,149.36,0.12549]
[1723393972167,25.8045,149.43,149.36,0.12549]
[1723393972364,25.8045,149.43,149.36,1.46434576]
[1723393973366,4.6842,149.44,149.36,1.46434576]
[1723393973566,26.6123404,149.45,149.36,22.58434576]
[1723393973781,0.8084404,149.45,149.38,0.12549]
[1723393973980,0.8084404,149.45,149.39,15.9014]
[1723393974790,0.8084404,149.45,149.4,6.0007]
[1723393974964,0.8084404,149.45,149.4,7.33914318]
[1723393975572,0.8084404,149.45,149.4,6.0007]
[1723393976089,5.4923404,149.45,149.4,6.0007]
[1723393976400,26.6123404,149.45,149.4,6.0007]
[1723393976688,21.9284404,149.45,149.4,6.0007]
[1723393976864,26.6122404,149.45,149.4,6.0007]
[1723393977367,0.8084404,149.45,149.4,6.0007]
[1723393977568,0.8084404,149.45,149.4,27.1207]
[1723393977795,0.8084404,149.45,149.41,45.12549]
[1723393978199,0.8084404,149.45,149.4,6.0007]
[1723393978377,5.4925404,149.45,149.4,6.0007]
[1723393978713,26.6123404,149.45,149.4,6.0007]
[1723393979391,21.9284404,149.45,149.4,6.0007]
[1723393979777,4.6841,149.44,149.4,6.0007]
[1723393979985,4.6841,149.44,149.39,15.9014]
[1723393980379,26.6122404,149.45,149.39,15.9014]
[1723393980595,21.12,149.41,149.36,6.0007]
[1723393981094,22.0539304,149.45,149.37,1.33893625]
[1723393981095,26.6122404,149.45,149.37,1.33893625]
[1723393981273,21.9284404,149.45,149.37,1.33893625]
[1723393981468,26.6122404,149.45,149.36,6.0007]
[1723393981695,21.9284404,149.45,149.36,6.0007]
[1723393981991,0.8084404,149.45,149.39,21.12]
[1723393982297,0.8084404,149.45,149.4,45.12549]
[1723393983301,0.8084404,149.45,149.41,16.02689]
[1723393983479,0.8084404,149.45,149.42,45.0]
[1723393984492,0.8084404,149.45,149.41,15.9014]
[1723393986298,0.8084404,149.45,149.42,45.12549]
[1723393986498,0.8084404,149.45,149.43,7.67210711]
[1723393986705,0.8084404,149.45,149.43,6.3339]
[1723393987780,0.8084404,149.45,149.44,45.12549]
[1723393988809,0.8084404,149.45,149.44,45.37647]
[1723393989106,0.8084404,149.45,149.44,45.50196]
[1723393990012,0.8084404,149.45,149.43,6.3339]
[1723393990190,0.8084404,149.45,149.41,37.0214]
[1723393990191,0.8084404,149.45,149.41,15.9014]
[1723393991210,21.12,149.43,149.37,15.497]
[1723393991382,25.8044,149.43,149.37,15.497]
[1723393991707,4.6848,149.42,149.37,15.497]
[1723393991908,4.6848,149.42,149.35,6.3339]
[1723393992204,21.12,149.43,149.35,6.3339]
[1723393992509,21.12,149.43,149.36,1.33876062]
[1723393992805,0.8084404,149.45,149.36,21.12]
[1723393993008,0.8084404,149.45,149.38,21.12]
[1723393993301,0.8084404,149.45,149.39,45.12549]
[1723393994308,0.8084404,149.45,149.4,0.12549]
[1723393994477,0.8084404,149.45,149.4,15.62249]
[1723393994677,0.8084404,149.45,149.41,45.0]
[1723393996005,0.8084404,149.45,149.42,1.33833312]
[1723393996310,0.8084404,149.45,149.41,45.0]
[1723393996781,0.8084404,149.45,149.41,46.33832966]
[1723393996986,0.8084404,149.45,149.42,0.12549]
[1723393997308,0.8084404,149.45,149.41,45.0]
[1723393997913,0.8084404,149.45,149.42,1.33830294]
[1723393998280,0.8084404,149.45,149.41,45.0]
[1723393998483,0.8084404,149.45,149.42,1.46369486]
[1723393998686,0.8084404,149.45,149.42,0.12549]
[1723393999113,0.8084404,149.45,149.41,45.0]
[1723393999888,0.8084404,149.45,149.42,1.3382837]
[1723394000592,0.8084404,149.45,149.41,45.0]
[1723394000794,0.8084404,149.45,149.42,0.12549]
[1723394001098,0.8084404,149.45,149.41,45.0]
[1723394001282,0.8084404,149.45,149.4,15.497]
[1723394001791,0.8084404,149.45,149.41,45.12549]
[1723394001989,0.8084404,149.45,149.42,0.12549]
[1723394002404,0.8084404,149.45,149.42,45.0]
[1723394002607,0.8084404,149.45,149.41,45.25098]
[1723394004199,0.8084404,149.45,149.41,45.12549]
[1723394004407,0.8084404,149.45,149.39,0.25098]
[1723394004616,0.8084404,149.45,149.39,45.0]
[1723394004792,0.8084404,149.45,149.36,36.617]
[1723394004998,0.8084404,149.45,149.37,20.0]
[1723394005930,0.8084404,149.45,149.38,21.24549]
[1723394006096,0.8084404,149.45,149.4,21.12]
[1723394006300,0.8084404,149.45,149.41,45.12549]
[1723394006702,0.8084404,149.45,149.39,0.25098]
[1723394006904,0.8084404,149.45,149.4,0.12549]
[1723394007606,0.8084404,149.45,149.4,0.25098]
[1723394008129,0.8084404,149.45,149.4,1.5892917]
[1723394008513,0.8084404,149.45,149.4,22.7092917]
[1723394008827,0.8084404,149.45,149.4,0.12549]
[1723394009027,0.8084404,149.45,149.39,45.0]
[1723394009941,0.8084404,149.45,149.36,36.617]
[1723394010237,0.8084404,149.45,149.37,65.12549]
[1723394010826,0.8084404,149.45,149.38,0.12549]
[1723394011014,0.8084404,149.45,149.32,8.16043355]
[1723394011015,21.12,149.43,149.34,21.12]
[1723394011215,25.8051,149.41,149.32,44.57863355]
[1723394011413,21.12,149.41,149.32,36.4182]
[1723394011925,21.12,149.43,149.34,21.12]
[1723394012626,21.12,149.43,149.35,45.12549]
[1723394013136,25.8045,149.43,149.35,45.12549]
[1723394015026,4.685,149.42,149.34,21.12]
[1723394015233,25.8044,149.43,149.34,21.12]
[1723394015433,25.8044,149.43,149.35,45.12549]
[1723394015726,21.12,149.41,149.35,45.0]
[1723394015935,21.12,149.41,149.33,0.37647]
[1723394016253,21.12,149.41,149.34,0.25098]
[1723394016530,21.12,149.41,149.34,45.25098]
[1723394016732,21.12,149.41,149.34,45.12549]
[1723394017032,21.12,149.41,149.34,0.12549]
[1723394017731,25.8044,149.43,149.34,1.58973835]
[1723394018034,4.6849,149.42,149.34,0.12549]
[1723394018235,21.12,149.41,149.34,0.37647]
[1723394018727,21.12,149.41,149.34,0.25098]
[1723394018929,21.12,149.43,149.35,0.12549]
[1723394019123,21.12,149.43,149.36,0.12549]
[1723394019323,15.0035,149.44,149.36,46.58966897]
[1723394019628,15.0035,149.44,149.37,21.12]
[1723394019934,15.0035,149.44,149.38,1.33860908]
[1723394020333,15.0035,149.44,149.39,0.12549]
[1723394020545,15.0035,149.44,149.39,1.58938923]
[1723394020912,15.0035,149.44,149.39,0.25098]
[1723394023946,0.8084404,149.45,149.39,0.25098]
[1723394024239,21.9284404,149.45,149.39,1.33844176]
[1723394024441,21.9284404,149.45,149.37,21.12]
[1723394024743,26.6123404,149.45,149.37,21.12]
[1723394024930,26.6123404,149.45,149.34,2.74450249]
[1723394024931,4.6845,149.43,149.35,21.12]
[1723394025740,4.6845,149.43,149.36,45.25098]
[1723394026442,4.6842,149.44,149.36,45.25098]
[1723394026940,21.12,149.39,149.32,6.99690263]
[1723394027237,21.12,149.37,149.28,17.28439796]
[1723394027634,0.12549,149.41,149.3,21.12]
[1723394027635,25.8051,149.41,149.3,21.12]
[1723394027832,25.8051,149.41,149.3,22.45894574]
[1723394028055,21.12,149.41,149.3,22.45894574]
[1723394028450,21.12,149.39,149.3,21.12]
[1723394028759,4.6854,149.4,149.31,0.12549]
[1723394029049,25.8058,149.39,149.31,0.12549]
[1723394029622,25.8058,149.39,149.31,0.25098]
[1723394029822,25.8058,149.39,149.31,45.25098]
[1723394030927,21.12,149.37,149.28,38.40439796]
[1723394031140,21.12,149.37,149.29,20.25098]
[1723394031944,21.12,149.37,149.3,1.33925018]
[1723394032249,21.12,149.37,149.3,45.0]
[1723394033954,21.12,149.35,149.28,17.28485725]
[1723394034137,21.12,149.33,149.28,1.16565725]
[1723394034333,21.12,149.33,149.24,16.1192]
[1723394034533,21.12,149.33,149.24,37.2392]
[1723394034749,21.12,149.33,149.25,1.33963233]
[1723394034950,21.12,149.33,149.24,37.2392]
[1723394035731,21.12,149.33,149.25,20.0]
[1723394036236,6.2101,149.34,149.24,16.49567]
[1723394036237,21.12,149.31,149.24,16.49567]
[1723394036564,21.12,149.31,149.24,16.1192]
[1723394037732,21.12,149.31,149.25,45.0]
[1723394037932,21.12,149.31,149.24,16.1192]
[1723394038444,21.12,149.33,149.25,1.33969848]
[1723394039157,21.12,149.33,149.26,0.12549]
[1723394039362,6.2101,149.34,149.26,1.46512238]
[1723394039566,15.087,149.35,149.27,0.25098]
[1723394039860,36.207,149.35,149.26,21.24549]
[1723394040539,4.6875,149.34,149.26,0.12549]
[1723394040958,36.207,149.35,149.27,0.12549]
[1723394041274,6.2101,149.38,149.27,65.37647]
[1723394041429,6.2101,149.38,149.29,21.12]
[1723394041633,6.2101,149.38,149.3,1.33935721]
[1723394042168,6.2101,149.38,149.31,1.59012035]
[1723394042328,381.0,149.43,149.31,22.71012035]
[1723394042329,21.12,149.41,149.31,22.71012035]
[1723394042541,4.686,149.38,149.3,51.5731]
[1723394042946,25.8057,149.39,149.31,0.12549]
[1723394043143,21.12,149.39,149.31,1.84107193]
[1723394043375,21.12,149.41,149.31,22.96107193]
[1723394043581,21.12,149.41,149.32,45.0]
[1723394043760,21.12,149.41,149.33,1.46443215]
[1723394044077,25.8051,149.41,149.33,0.12549]
[1723394044245,21.12,149.41,149.33,0.37647]
[1723394044666,6.2101,149.42,149.33,21.49647]
[1723394044949,10.8949,149.42,149.34,45.0]
[1723394045856,21.12,149.41,149.33,0.12549]
[1723394046059,25.8051,149.41,149.32,45.50196]
[1723394046309,21.12,149.41,149.32,45.37647]
[1723394046446,21.12,149.41,149.33,0.12549]
[1723394048257,25.8051,149.41,149.33,0.12549]
[1723394048875,25.8051,149.41,149.31,37.2392]
[1723394049049,21.12,149.41,149.31,37.2392]
[1723394049251,21.12,149.41,149.32,21.33891937]
[1723394049457,21.12,149.41,149.33,1.33887087]
[1723394050075,6.2101,149.42,149.33,22.45887087]
[1723394050376,6.2101,149.42,149.34,45.50196]
[1723394050672,15.087,149.43,149.35,22.45873721]
[1723394050874,19.7715,149.43,149.36,45.12549]
[1723394051174,40.8915,149.43,149.34,45.50196]
[1723394051480,15.087,149.43,149.35,22.4587541]
[1723394051670,15.087,149.43,149.36,45.12549]
[1723394051861,15.087,149.43,149.37,1.33868112]
[1723394053381,36.207,149.43,149.36,45.12549]
[1723394053565,36.207,149.43,149.33,21.12]
[1723394053767,25.8051,149.41,149.34,0.12549]
[1723394053972,25.8051,149.41,149.33,0.50196]
[1723394054601,25.8051,149.41,149.33,0.25098]
[1723394054602,4.6854,149.4,149.33,0.25098]
[1723394054760,21.12,149.39,149.32,0.12549]
[1723394055181,21.12,149.39,149.32,0.25098]
[1723394055975,21.12,149.39,149.32,45.25098]
[1723394057283,36.207,149.43,149.33,21.24549]
[1723394057475,40.8915,149.43,149.34,45.12549]
[1723394058061,4.6848,149.42,149.34,45.12549]
[1723394058381,36.207,149.43,149.34,45.12549]
[1723394059287,40.8915,149.43,149.34,45.12549]
[1723394062270,4.6848,149.42,149.34,45.12549]
[1723394064185,36.207,149.43,149.34,45.12549]
[1723394064186,40.8915,149.43,149.34,45.12549]
[1723394066677,36.207,149.43,149.35,21.24549]
[1723394066995,21.9284404,149.45,149.37,0.12549]
[1723394067174,21.9284404,149.45,149.37,1.46407806]
[1723394067577,21.9284404,149.45,149.32,21.24549]
[1723394067578,21.12,149.41,149.32,21.24549]
[1723394067776,25.8051,149.41,149.33,20.12549]
[1723394068183,21.12,149.41,149.33,20.12549]
[1723394069793,4.6845,149.43,149.34,45.0]
[1723394070097,25.8042,149.44,149.35,0.50196]
[1723394070300,25.8042,149.44,149.34,66.12]
[1723394070301,4.6848,149.42,149.34,66.12]
[1723394070598,21.12,149.4,149.33,20.0]
[1723394070771,25.8054,149.4,149.32,0.12549]
[1723394070972,25.8054,149.4,149.32,65.37647]
[1723394071809,21.12,149.4,149.32,65.37647]
[1723394072100,21.12,149.4,149.33,1.33904116]
[1723394073293,16.1069,149.41,149.34,0.12549]
[1723394073979,16.1069,149.41,149.34,1.58990574]
[1723394074483,16.1069,149.41,149.34,45.25098]
[1723394074684,21.12,149.42,149.34,45.25098]
[1723394075683,25.8047,149.42,149.34,45.25098]
[1723394076381,21.12,149.42,149.34,45.25098]
[1723394077181,21.12,149.42,149.35,0.25098]
[1723394077394,25.8049,149.42,149.34,45.25098]
[1723394077705,25.8049,149.42,149.34,45.12549]
[1723394077993,10.55,149.41,149.34,55.67549]
[1723394078198,15.2349,149.42,149.35,1.33894488]
[1723394078884,15.2349,149.42,149.34,55.67549]
[1723394079284,10.55,149.42,149.35,10.67549]
[1723394079600,15.2348,149.42,149.35,10.55]
[1723394079896,15.2351,149.41,149.34,55.67549]
[1723394080088,10.55,149.41,149.35,1.33894479]
[1723394080289,10.55,149.41,149.36,1.33885672]
[1723394080498,10.55,149.41,149.34,55.67549]
[1723394081394,10.55,149.42,149.35,1.715217]
[1723394081697,10.55,149.42,149.36,0.12549]
[1723394081879,10.55,149.42,149.36,45.12549]
[1723394083519,10.55,149.39,149.32,20.0]
[1723394084010,10.55,149.39,149.32,30.55]
[1723394084788,10.55,149.39,149.33,45.12549]
[1723394085006,10.55,149.39,149.33,45.0]
[1723394085183,10.55,149.38,149.32,0.12549]
[1723394085382,10.55,149.38,149.32,0.25098]
[1723394086505,10.55,149.37,149.31,16.1192]
[1723394086805,10.55,149.37,149.32,45.0]
[1723394087506,0.25098,149.43,149.32,55.55]
[1723394087507,10.55,149.4,149.32,55.55]
[1723394087704,15.2354,149.4,149.33,0.12549]
[1723394088290,10.55,149.4,149.33,10.67549]
[1723394091190,16.9153404,149.45,149.34,10.67549]
[1723394091403,4.6841,149.44,149.35,11.88884752]
[1723394091712,10.55,149.42,149.36,1.46425109]
[1723394091901,10.55,149.42,149.36,45.12549]
[1723394092109,10.55,149.42,149.36,45.0]
[1723394092110,10.55,149.41,149.36,45.0]
[1723394092303,10.55,149.41,149.35,45.0]
[1723394094193,10.55,149.42,149.35,55.55]
[1723394094511,15.2345,149.43,149.36,1.33880803]
[1723394094710,0.8084404,149.45,149.39,10.55]
[1723394094888,0.8084404,149.45,149.4,11.8884816]
[1723394095518,0.8084404,149.45,149.4,10.55]
[1723394095893,0.8084404,149.45,149.41,55.67549]
[1723394096217,0.8084404,149.45,149.41,45.0]
[1723394096387,0.8084404,149.45,149.4,10.55]
[1723394097593,0.8084404,149.45,149.41,11.88836641]
[1723394098898,0.8084404,149.45,149.41,10.55]
[1723394099292,0.8084404,149.45,149.42,1.33836106]
[1723394099598,0.8084404,149.45,149.4,10.55]
[1723394099989,0.8084404,149.45,149.42,0.12549]
[1723394100191,0.8084404,149.45,149.42,45.0]
[1723394100491,0.8084404,149.45,149.4,10.67549]
[1723394101418,0.8084404,149.45,149.39,10.80098]
[1723394101625,0.8084404,149.45,149.4,45.12549]
[1723394102122,0.8084404,149.45,149.4,55.67549]
[1723394102416,0.8084404,149.45,149.4,45.12549]
[1723394102590,10.55,149.44,149.31,56.98792774]
[1723394102796,10.55,149.44,149.36,16.9103]
[1723394103817,10.55,149.44,149.33,16.287]
[1723394103818,10.55,149.38,149.33,16.287]
[1723394104017,10.55,149.42,149.34,10.55]
[1723394104222,43.0084404,149.45,149.36,10.55]
[1723394104223,10.55,149.43,149.36,10.55]
[1723394104516,10.55,149.43,149.37,1.33868629]
[1723394105197,10.55,149.41,149.34,10.55]
[1723394105398,10.55,149.39,149.33,16.287]
[1723394106014,10.55,149.4,149.34,1.33905851]
[1723394106713,10.55,149.4,149.33,26.837]
[1723394107016,10.55,149.41,149.34,10.55]
[1723394107320,15.2347,149.42,149.34,10.55]
[1723394107489,10.55,149.41,149.33,26.837]
[1723394107693,10.55,149.41,149.34,0.12549]
[1723394107889,10.55,149.41,149.34,45.12549]
[1723394108397,10.55,149.41,149.35,1.33891031]
[1723394108603,10.55,149.41,149.34,45.12549]
[1723394108915,10.55,149.42,149.35,0.25098]
[1723394109212,10.55,149.42,149.36,0.12549]
[1723394109720,10.55,149.42,149.34,45.0]
[1723394110414,10.55,149.42,149.35,0.12549]
[1723394110717,10.55,149.42,149.35,10.67549]
[1723394111108,10.55,149.42,149.36,45.0]
[1723394111303,10.55,149.43,149.36,45.0]
[1723394112219,4.6841,149.44,149.37,1.5896045]
[1723394112220,10.55,149.44,149.37,1.5896045]
[1723394112517,0.8084404,149.45,149.37,0.25098]
[1723394112720,0.8084404,149.45,149.39,0.12549]
[1723394112909,0.8084404,149.45,149.39,45.25098]
[1723394113299,11.3584404,149.45,149.39,45.25098]
[1723394113508,11.3584404,149.45,149.39,45.12549]
[1723394115501,11.3584404,149.45,149.4,1.33847918]
[1723394115828,0.8084404,149.45,149.43,0.12549]
[1723394116008,0.8084404,149.45,149.43,57.01358387]
[1723394116416,0.8084404,149.45,149.43,45.12549]
[1723394117419,0.8084404,149.45,149.43,55.67549]
[1723394118230,0.8084404,149.45,149.43,45.12549]
[1723394118409,0.8084404,149.45,149.42,10.55]
[1723394118615,0.8084404,149.45,149.41,0.25098]
[1723394118820,0.8084404,149.45,149.42,0.12549]
[1723394119317,0.8084404,149.45,149.42,0.25098]
[1723394120334,0.8084404,149.45,149.42,10.80098]
[1723394120512,0.8084404,149.45,149.43,45.0]
[1723394120837,0.8084404,149.45,149.41,20.0]
[1723394121406,0.8084404,149.45,149.42,45.0]
[1723394121637,0.8084404,149.45,149.41,20.0]
[1723394122816,0.8084404,149.45,149.4,26.59818]
[1723394123006,0.8084404,149.45,149.41,45.12549]
[1723394123901,0.8084404,149.45,149.36,15.7972]
[1723394124107,0.8084404,149.45,149.38,10.55]
[1723394125323,0.8084404,149.45,149.39,10.55]
[1723394125524,0.8084404,149.45,149.4,45.0]
[1723394126040,0.8084404,149.45,149.41,1.33845606]
[1723394126252,0.8084404,149.45,149.4,45.0]
[1723394126406,0.8084404,149.45,149.41,0.12549]
[1723394126603,0.8084404,149.45,149.4,45.0]
[1723394126825,0.8084404,149.45,149.41,1.33834173]
[1723394127428,0.8084404,149.45,149.4,45.0]
[1723394128407,11.3584404,149.45,149.38,0.12549]
[1723394128731,0.8084404,149.45,149.37,1.33848789]
[1723394128904,10.55,149.39,149.35,6.99553123]
[1723394129111,10.55,149.39,149.32,15.3359]
[1723394129346,4.6848,149.42,149.32,15.3359]
[1723394129515,10.55,149.4,149.32,25.8859]
[1723394130537,10.55,149.4,149.33,20.0]
[1723394130838,10.55,149.43,149.35,10.55]
[1723394131012,10.55,149.43,149.36,10.55]
[1723394132833,21.7936,149.44,149.37,55.67549]
[1723394133133,32.3436,149.44,149.38,1.33863331]
[1723394133434,21.7936,149.44,149.38,1.33863331]
[1723394133634,21.7936,149.44,149.37,55.67549]